bitfinex/quotes_BTCUSD_20220111
["timestamp","ask_amount","ask_price","bid_price","bid_amount"]
[1641927058226,0.00115,42840.0,42839.0,0.382591]
[1641927059526,0.00115,42840.0,42839.0,0.375591]
[1641927060124,0.00115,42840.0,42839.0,0.007]
[1641927060626,0.00115,42840.0,42839.0,0.382591]
[1641927060824,0.00115,42840.0,42839.0,0.382491]
[1641927061475,0.00115,42840.0,42839.0,0.375591]
[1641927062270,0.00115,42840.0,42839.0,0.382591]
[1641927063473,0.00115,42840.0,42838.0,0.0999]
[1641927063869,0.375591,42839.0,42838.0,0.0999]
[1641927064070,1.60662576,42839.0,42838.0,0.0999]
[1641927064270,1.56303176,42839.0,42838.0,0.0999]
[1641927064671,1.61303176,42839.0,42838.0,0.0999]
[1641927064869,1.61303176,42839.0,42831.0,0.15]
[1641927065070,0.46387416,42832.0,42831.0,0.15]
[1641927065322,0.76822444,42832.0,42831.0,0.15]
[1641927065922,0.46387416,42832.0,42831.0,0.15]
[1641927066123,0.46387416,42832.0,42824.0,0.00084288]
[1641927066324,0.46387416,42832.0,42831.0,0.006]
[1641927066525,0.42474367,42833.0,42831.0,0.006]
[1641927066729,0.42474367,42833.0,42832.0,0.058361]
[1641927067026,0.75714275,42833.0,42832.0,0.058361]
[1641927067426,0.42474367,42833.0,42832.0,0.058361]
[1641927068027,0.80033467,42833.0,42832.0,0.058361]
[1641927068228,1.18231165,42833.0,42832.0,0.003]
[1641927068828,0.82433467,42833.0,42832.0,0.003]
[1641927069074,2.2623636,42833.0,42832.0,0.003]
[1641927069275,1.50720923,42833.0,42832.0,0.003]
[1641927069575,0.84753467,42833.0,42826.0,0.0999]
[1641927069776,0.47194367,42833.0,42826.0,0.0999]
[1641927070172,0.52894367,42833.0,42826.0,0.158271]
[1641927070373,0.00703301,42827.0,42826.0,0.0999]
[1641927071975,0.37577266,42827.0,42826.0,0.0999]
[1641927072175,0.40377266,42827.0,42826.0,0.0999]
[1641927073420,0.00703301,42827.0,42826.0,0.0999]
[1641927074223,0.02603301,42827.0,42826.0,0.0999]
[1641927075225,0.40162401,42827.0,42826.0,0.0999]
[1641927075425,0.38262401,42827.0,42826.0,0.0999]
[1641927076328,0.40162401,42827.0,42826.0,0.0999]
[1641927077484,0.38262401,42827.0,42826.0,0.0999]
[1641927077785,0.00203301,42827.0,42826.0,0.0999]
[1641927078180,0.02003301,42827.0,42826.0,0.0999]
[1641927079483,0.00203301,42827.0,42826.0,0.0999]
[1641927079883,0.37762401,42827.0,42826.0,0.0999]
[1641927080327,0.39562401,42827.0,42826.0,0.0999]
[1641927081526,0.37762401,42827.0,42826.0,0.0999]
[1641927082326,0.39362401,42827.0,42826.0,0.0999]
[1641927082727,1.09665961,42827.0,42826.0,0.0999]
[1641927082929,0.74665961,42827.0,42826.0,0.0999]
[1641927083529,0.73065961,42827.0,42826.0,0.0999]
[1641927084178,0.74465961,42827.0,42826.0,0.0999]
[1641927085580,0.73065961,42827.0,42826.0,0.0999]
[1641927086179,0.75065961,42827.0,42826.0,0.0999]
[1641927086782,0.80065961,42827.0,42826.0,0.0999]
[1641927087582,0.78065961,42827.0,42826.0,0.0999]
[1641927088229,0.80165961,42827.0,42826.0,0.0999]
[1641927088828,1.10484964,42827.0,42826.0,0.0999]
[1641927089026,0.75294887,42827.0,42826.0,0.0999]
[1641927089426,0.73194887,42827.0,42826.0,0.0999]
[1641927089628,1.07036791,42827.0,42826.0,0.0999]
[1641927089828,1.12036791,42827.0,42826.0,0.0999]
[1641927090027,0.78194887,42827.0,42826.0,0.0999]
[1641927090228,0.79594887,42827.0,42826.0,0.0999]
[1641927091029,2.04294887,42827.0,42826.0,0.0999]
[1641927091231,0.79594887,42827.0,42826.0,0.0999]
[1641927091479,0.37762401,42827.0,42826.0,0.0999]
[1641927092274,0.43962401,42827.0,42826.0,0.0999]
[1641927092676,0.06403301,42827.0,42826.0,0.0999]
[1641927092878,0.062,42827.0,42826.0,0.42394997]
[1641927093078,0.062,42827.0,42826.0,0.52394997]
[1641927093276,0.062,42827.0,42826.0,0.470491]
[1641927093486,0.69962029,42833.0,42826.0,0.470491]
[1641927093678,0.42474367,42833.0,42828.0,0.05837]
[1641927094278,0.49174367,42833.0,42828.0,0.06037]
[1641927094778,0.7673385,42833.0,42828.0,0.06037]
[1641927094979,0.49174367,42833.0,42830.0,0.058367]
[1641927095223,0.49174367,42833.0,42831.0,0.058363]
[1641927095425,0.067,42833.0,42831.0,0.058363]
[1641927095726,0.60948686,42840.0,42831.0,0.058363]
[1641927095727,0.2915913,42840.0,42831.0,0.058363]
[1641927095925,0.00041968,42834.0,42831.0,0.058363]
[1641927096127,0.00041968,42834.0,42831.0,0.116722]
[1641927096928,0.0813913,42840.0,42831.0,0.116722]
[1641927096929,0.08015,42840.0,42831.0,0.116722]
[1641927097127,0.08015,42840.0,42837.0,0.05835]
[1641927097526,0.00115,42840.0,42837.0,0.05835]
[1641927098126,0.41481928,42839.0,42838.0,0.05835]
[1641927099770,0.8102189,42839.0,42838.0,0.05835]
[1641927099970,0.8102189,42839.0,42837.0,0.05835]
[1641927100170,0.00115,42840.0,42838.0,0.0012093]
[1641927100372,0.00115,42840.0,42838.0,0.2034093]
[1641927100670,0.00115,42840.0,42839.0,1.47689017]
[1641927100873,5e-05,42840.0,42839.0,1.76530013]
[1641927101071,1.1754129,42861.0,42841.0,0.5]
[1641927101072,0.15139239,42856.0,42841.0,0.5]
[1641927101278,0.45906479,42850.0,42849.0,0.058333]
[1641927102275,0.45906479,42850.0,42849.0,0.063333]
[1641927103331,0.45406479,42850.0,42849.0,0.063333]
[1641927103529,0.45406479,42850.0,42849.0,0.058333]
[1641927104331,0.45406479,42850.0,42849.0,0.063333]
[1641927105534,0.45406479,42850.0,42849.0,0.058333]
[1641927106331,0.45406479,42850.0,42849.0,0.063333]
[1641927107579,0.45406479,42850.0,42849.0,0.058333]
[1641927107779,0.44906479,42850.0,42849.0,0.058333]
[1641927108381,0.44906479,42850.0,42849.0,0.084333]
[1641927110232,0.44906479,42850.0,42849.0,0.058333]
[1641927110425,0.44906479,42850.0,42849.0,0.084333]
[1641927111627,0.44906479,42850.0,42849.0,0.058333]
[1641927112428,0.44906479,42850.0,42849.0,0.084333]
[1641927112830,0.68346251,42857.0,42849.0,0.178833]
[1641927112831,0.00041684,42852.0,42849.0,0.178833]
[1641927113030,0.00041684,42852.0,42851.0,1.275591]
[1641927113230,0.41880905,42857.0,42851.0,0.37679155]
[1641927113429,0.41880905,42857.0,42854.0,0.058324]
[1641927113830,0.41880905,42857.0,42855.0,0.375591]
[1641927113831,0.8554866,42857.0,42855.0,0.375591]
[1641927114079,0.8554866,42857.0,42854.0,0.116653]
[1641927114277,0.8554866,42857.0,42855.0,0.014]
[1641927114877,1.09940278,42857.0,42855.0,0.014]
[1641927115578,1.09940278,42857.0,42854.0,0.058324]
[1641927116181,0.8554866,42857.0,42854.0,0.058324]
[1641927116379,0.8554866,42857.0,42854.0,0.075324]
[1641927116580,0.8554866,42857.0,42854.0,0.133652]
[1641927116982,0.8554866,42857.0,42854.0,0.075324]
[1641927117378,0.34408802,42855.0,42854.0,0.075324]
[1641927117578,0.34408802,42855.0,42854.0,0.058324]
[1641927117830,1.2,42854.0,42852.0,0.0945]
[1641927118132,1.425591,42853.0,42852.0,0.0945]
[1641927118329,1.47279312,42853.0,42852.0,0.1015]
[1641927118530,1.425591,42853.0,42852.0,0.1015]
[1641927118731,1.92739178,42853.0,42852.0,0.07104367]
[1641927118931,4.80030897,42853.0,42852.0,0.007]
[1641927119133,3.75030897,42853.0,42852.0,0.007]
[1641927119533,3.75030897,42853.0,42846.0,0.0639]
[1641927119731,0.058345,42852.0,42846.0,0.0639]
[1641927119932,0.422791,42851.0,42846.0,0.0639]
[1641927120131,0.73560964,42851.0,42842.0,0.2814]
[1641927120331,0.73560964,42851.0,42846.0,0.007]
[1641927120832,0.73560964,42851.0,42840.0,0.082188]
[1641927120833,0.38844637,42846.0,42840.0,0.082188]
[1641927121033,0.39676754,42845.0,42843.0,0.058347]
[1641927122375,0.39676754,42845.0,42843.0,0.069347]
[1641927123679,0.39676754,42845.0,42843.0,0.058347]
[1641927124478,0.39676754,42845.0,42843.0,0.070347]
[1641927126227,0.39676754,42845.0,42843.0,0.058347]
[1641927126531,1.28636986,42844.0,42843.0,0.012]
[1641927126727,1.63111307,42844.0,42843.0,0.012]
[1641927127329,2.08075579,42844.0,42843.0,0.012]
[1641927127727,2.08075579,42844.0,42836.0,0.01018672]
[1641927127728,0.30169845,42838.0,42836.0,0.01018672]
[1641927127929,0.72448945,42838.0,42836.0,0.01018672]
[1641927128128,0.72448945,42838.0,42836.0,0.009344]
[1641927128326,1.87448945,42838.0,42836.0,0.009344]
[1641927128526,1.87448945,42838.0,42837.0,0.008]
[1641927128527,1.54889845,42838.0,42837.0,0.008]
[1641927128728,1.92448945,42838.0,42837.0,0.008]
[1641927128983,1.2,42837.0,42835.0,0.0008427]
[1641927129179,1.24841127,42836.0,42835.0,0.0008427]
[1641927129378,1.62400227,42836.0,42830.0,0.00015]
[1641927129580,0.375591,42835.0,42834.0,0.00084272]
[1641927129781,0.486331,42835.0,42834.0,0.00084272]
[1641927129983,1.32000196,42835.0,42834.0,0.00084272]
[1641927130180,1.32000196,42835.0,42819.0,1.176447]
[1641927130181,1.2,42834.0,42820.0,0.31065]
[1641927130380,1.2,42834.0,42820.0,0.00015]
[1641927130381,0.1,42831.0,42820.0,0.00015]
[1641927130580,0.00128816,42826.0,42820.0,0.00015]
[1641927130781,1.15304712,42821.0,42820.0,0.00015]
[1641927130981,2.22066539,42821.0,42820.0,0.10005]
[1641927131183,1.88013893,42821.0,42820.0,0.10005]
[1641927131585,1.88138034,42821.0,42820.0,0.10005]
[1641927132382,1.89038034,42821.0,42820.0,0.11305]
[1641927133624,1.94038034,42821.0,42820.0,0.10005]
[1641927133826,1.93138034,42821.0,42820.0,0.10005]
[1641927134426,1.94438034,42821.0,42820.0,0.10005]
[1641927135729,1.93138034,42821.0,42820.0,0.10005]
[1641927136483,1.94338034,42821.0,42820.0,0.10005]
[1641927137678,1.93138034,42821.0,42820.0,0.10005]
[1641927138379,1.58262467,42820.0,42818.0,0.00084291]
[1641927138579,1.35807776,42819.0,42818.0,0.00084291]
[1641927138780,1.88366876,42819.0,42818.0,0.00084291]
[1641927138980,1.98293342,42819.0,42806.0,0.00015]
[1641927139279,0.04482436,42816.0,42810.0,0.00337225]
[1641927139479,0.00125352,42812.0,42810.0,0.00337225]
[1641927139679,1.622791,42811.0,42810.0,0.00352225]
[1641927139879,2.03689837,42811.0,42810.0,0.00352225]
[1641927140078,1.2,42810.0,42800.0,0.67015]
[1641927140326,0.3788517,42805.0,42800.0,0.67015]
[1641927140530,0.30130812,42803.0,42800.0,0.67015]
[1641927141326,0.7363577,42803.0,42800.0,0.67015]
[1641927141528,0.36371491,42802.0,42800.0,0.67015]
[1641927142326,0.36371491,42802.0,42800.0,0.66615]
[1641927142528,0.41271491,42802.0,42800.0,0.66615]
[1641927142728,0.00703648,42801.0,42800.0,0.724554]
[1641927142928,0.00703648,42801.0,42800.0,0.624554]
[1641927143981,0.00703648,42801.0,42800.0,0.56615]
[1641927144478,0.01303648,42801.0,42800.0,0.56615]
[1641927145076,0.01303648,42801.0,42800.0,0.66605]
[1641927145680,0.00703648,42801.0,42800.0,0.66605]
[1641927146378,0.01603648,42801.0,42800.0,0.66605]
[1641927146979,0.36603648,42801.0,42800.0,0.66605]
[1641927147179,0.01603648,42801.0,42800.0,0.66605]
[1641927147823,0.00703648,42801.0,42800.0,0.66605]
[1641927148424,0.01603648,42801.0,42800.0,0.66605]
[1641927149625,0.00703648,42801.0,42800.0,0.66605]
[1641927150425,0.01303648,42801.0,42800.0,0.66605]
[1641927151673,0.00703648,42801.0,42800.0,0.66605]
[1641927152275,0.00703648,42801.0,42800.0,1.041641]
[1641927152476,0.01103648,42801.0,42800.0,1.041641]
[1641927153579,0.01103648,42801.0,42800.0,1.036641]
[1641927153775,0.00703648,42801.0,42800.0,1.036641]
[1641927153978,0.00703648,42801.0,42800.0,1.036385]
[1641927154177,0.00703648,42801.0,42800.0,0.660794]
[1641927154576,0.01103648,42801.0,42800.0,0.660794]
[1641927155627,0.00703648,42801.0,42800.0,0.660794]
[1641927156633,0.01303648,42801.0,42800.0,0.660794]
[1641927157830,0.00703648,42801.0,42800.0,0.660794]
[1641927158531,0.01503648,42801.0,42800.0,0.660794]
[1641927159774,0.00703648,42801.0,42800.0,0.660794]
[1641927159975,0.00703648,42801.0,42800.0,0.655794]
[1641927160575,0.01503648,42801.0,42800.0,0.655794]
[1641927161876,0.38262748,42801.0,42800.0,0.655794]
[1641927162479,0.39062748,42801.0,42800.0,0.655794]
[1641927162727,0.01503648,42801.0,42800.0,0.655794]
[1641927163829,0.00703648,42801.0,42800.0,0.655794]
[1641927164229,0.00015,42810.0,42801.0,1.05]
[1641927164430,0.00015,42810.0,42802.0,0.0472]
[1641927164827,0.00015,42810.0,42802.0,0.0422]
[1641927165228,0.00015,42810.0,42803.0,0.05255035]
[1641927165428,0.00015,42810.0,42805.0,0.116783]
[1641927165628,0.00015,42810.0,42805.0,0.058392]
[1641927166230,0.00015,42810.0,42806.0,0.0999]
[1641927166481,0.00015,42810.0,42806.0,0.0949]
[1641927166482,0.24667273,42810.0,42806.0,0.0949]
[1641927166678,0.00015,42810.0,42806.0,0.15413306]
[1641927167476,0.00015,42810.0,42807.0,0.058388]
[1641927168676,0.00015,42810.0,42809.0,0.0948]
[1641927170729,0.00015,42810.0,42809.0,2.16597021]
[1641927170928,0.0004748,42812.0,42811.0,1.208369]
[1641927171127,0.0004748,42812.0,42811.0,1.82992549]
[1641927171327,0.00015,42820.0,42811.0,1.87712549]
[1641927171529,0.00047482,42814.0,42812.0,0.375591]
[1641927171728,0.00047482,42814.0,42813.0,1.492328]
[1641927172127,0.00047482,42814.0,42813.0,0.642328]
[1641927172328,0.00047482,42814.0,42813.0,0.742328]
[1641927172531,0.00015,42820.0,42814.0,1.2]
[1641927172731,0.00015,42820.0,42819.0,0.00125574]
[1641927172929,0.00015,42820.0,42819.0,0.37684674]
[1641927174582,0.00015,42820.0,42819.0,0.420591]
[1641927175783,0.00015,42820.0,42819.0,0.375591]
[1641927176585,0.00015,42820.0,42819.0,0.457591]
[1641927177832,0.00015,42820.0,42819.0,0.375591]
[1641927178634,0.00015,42820.0,42819.0,0.451591]
[1641927179032,0.00015,42820.0,42819.0,0.076]
[1641927179635,0.45393927,42820.0,42819.0,0.07430104]
[1641927179837,0.45393927,42820.0,42818.0,0.0945]
[1641927180234,1.575591,42819.0,42818.0,0.0945]
[1641927180537,1.58389946,42819.0,42818.0,0.034]
[1641927181133,1.63389946,42819.0,42818.0,0.034]
[1641927181787,0.43389946,42819.0,42818.0,0.034]
[1641927181990,0.3586544,42812.0,42809.0,0.00084308]
[1641927182188,0.63476016,42812.0,42804.0,0.0945]
[1641927182390,0.3586544,42812.0,42809.0,0.05923708]
[1641927182588,0.44607263,42813.0,42809.0,0.10923208]
[1641927182887,0.34089862,42819.0,42809.0,0.05084308]
[1641927183287,0.34089862,42819.0,42809.0,0.05]
[1641927183487,0.00047128,42816.0,42809.0,0.05084305]
[1641927183689,0.00047128,42816.0,42812.0,0.116767]
[1641927184289,0.375591,42815.0,42812.0,0.116767]
[1641927184488,0.67712367,42815.0,42812.0,0.116767]
[1641927184690,0.67712367,42815.0,42812.0,0.141767]
[1641927185091,0.00947128,42816.0,42813.0,0.058383]
[1641927185737,0.009,42816.0,42813.0,0.058383]
[1641927186040,0.74948719,42817.0,42813.0,0.053383]
[1641927186239,0.42874123,42817.0,42813.0,0.053383]
[1641927186437,0.42874123,42817.0,42813.0,0.111765]
[1641927186638,0.43074123,42817.0,42815.0,0.058385]
[1641927187038,0.43026995,42817.0,42815.0,0.058385]
[1641927188239,0.71180163,42817.0,42815.0,0.058385]
[1641927188440,0.70980163,42817.0,42815.0,0.058385]
[1641927188641,0.43526995,42817.0,42815.0,0.170885]
[1641927189085,0.007,42817.0,42815.0,0.170885]
[1641927189883,0.68743566,42818.0,42815.0,0.152885]
[1641927190283,0.375591,42817.0,42815.0,0.152885]
[1641927190483,0.38501129,42818.0,42815.0,0.152885]
[1641927190686,0.39054,42818.0,42815.0,0.188885]
[1641927191486,0.006,42818.0,42816.0,0.05838]
[1641927191685,0.006,42818.0,42817.0,0.611244]
[1641927191886,0.00703395,42819.0,42817.0,0.986835]
[1641927192087,0.00750525,42819.0,42818.0,0.675591]
[1641927192287,0.00750525,42819.0,42818.0,0.733957]
[1641927192288,0.0004713,42819.0,42818.0,0.733957]
[1641927192488,0.0004713,42819.0,42818.0,1.233957]
[1641927192731,0.0004713,42819.0,42818.0,0.904957]
[1641927192929,0.001,42821.0,42818.0,0.999457]
[1641927193129,0.00147131,42821.0,42818.0,0.999457]
[1641927193931,0.00147131,42821.0,42818.0,0.978457]
[1641927194129,0.001,42821.0,42818.0,1.03098409]
[1641927194330,0.00147131,42821.0,42818.0,1.03098409]
[1641927194530,0.00147131,42821.0,42819.0,1.025591]
[1641927194731,0.00147131,42821.0,42819.0,0.375591]
[1641927194930,0.00147131,42821.0,42819.0,0.69269044]
[1641927195333,0.001,42821.0,42819.0,0.69269044]
[1641927196580,0.001,42821.0,42819.0,0.73369044]
[1641927196779,0.001,42821.0,42819.0,0.416591]
[1641927197379,0.001,42821.0,42819.0,0.511091]
[1641927197982,0.001,42821.0,42819.0,0.470091]
[1641927198682,0.001,42821.0,42819.0,0.677091]
[1641927199882,0.001,42821.0,42819.0,0.620091]
[1641927200835,0.001,42821.0,42819.0,0.522091]
[1641927201034,0.001,42821.0,42819.0,0.1465]
[1641927201835,0.001,42821.0,42819.0,0.0945]
[1641927202637,0.001,42821.0,42819.0,0.1575]
[1641927203041,1.2,42818.0,42804.0,0.163953]
[1641927203240,1.2,42818.0,42800.0,0.14041706]
[1641927203241,0.0012896,42804.0,42800.0,0.14041706]
[1641927203438,0.43629806,42802.0,42800.0,0.14041706]
[1641927203639,0.43629806,42802.0,42800.0,0.24031706]
[1641927203840,0.10560763,42808.0,42800.0,0.236944]
[1641927204091,0.00121016,42807.0,42800.0,0.236944]
[1641927204690,0.28879227,42806.0,42800.0,0.236944]
[1641927204893,0.40772955,42805.0,42800.0,0.236944]
[1641927205292,0.40772955,42805.0,42801.0,0.158302]
[1641927205895,0.05841056,42804.0,42800.0,0.137044]
[1641927206096,0.375591,42803.0,42800.0,0.137044]
[1641927206293,0.375591,42803.0,42801.0,0.00084313]
[1641927206693,0.383591,42803.0,42801.0,0.00084313]
[1641927206894,0.41167284,42803.0,42801.0,0.00084313]
[1641927207395,0.41167284,42803.0,42800.0,0.137044]
[1641927207597,0.41167284,42803.0,42800.0,0.13788714]
[1641927208131,0.30279539,42802.0,42800.0,0.13788714]
[1641927208336,1.225591,42801.0,42800.0,0.13788714]
[1641927208530,0.375591,42801.0,42800.0,0.137044]
[1641927208733,0.30279539,42802.0,42800.0,0.137044]
[1641927208734,0.015,42802.0,42800.0,0.137044]
[1641927209135,0.975591,42801.0,42800.0,0.137044]
[1641927209333,0.375591,42801.0,42800.0,0.137044]
[1641927209735,0.015,42802.0,42800.0,0.137044]
[1641927209934,0.02808184,42803.0,42800.0,0.137044]
[1641927210837,0.03908184,42803.0,42800.0,0.137044]
[1641927212082,0.02808184,42803.0,42800.0,0.137044]
[1641927212284,0.44821765,42803.0,42800.0,0.137044]
[1641927212484,0.44821765,42803.0,42800.0,0.195447]
[1641927212683,0.47121765,42803.0,42800.0,0.195447]
[1641927212984,0.47121765,42803.0,42800.0,0.137044]
[1641927213387,0.4709237,42803.0,42800.0,0.137044]
[1641927213785,0.05078789,42803.0,42800.0,0.137044]
[1641927213985,0.02778789,42803.0,42800.0,0.137044]
[1641927214789,0.04978789,42803.0,42801.0,0.058402]
[1641927215085,0.04978789,42803.0,42800.0,0.137044]
[1641927215344,0.3297621,42801.0,42800.0,0.137044]
[1641927215644,0.70662146,42801.0,42800.0,0.137044]
[1641927216742,0.71862146,42801.0,42800.0,0.137044]
[1641927217143,0.7173531,42801.0,42800.0,0.137044]
[1641927217942,0.7053531,42801.0,42800.0,0.137044]
[1641927218142,0.7053531,42801.0,42800.0,0.132044]
[1641927218742,0.015,42801.0,42800.0,0.132044]
[1641927219786,0.390591,42801.0,42800.0,0.132044]
[1641927220085,0.375591,42801.0,42800.0,0.132044]
[1641927220684,0.388591,42801.0,42800.0,0.132044]
[1641927221887,0.013,42801.0,42800.0,0.132044]
[1641927222088,0.02778789,42803.0,42800.0,0.132044]
[1641927222742,0.04278789,42803.0,42800.0,0.132044]
[1641927223747,0.375591,42802.0,42800.0,0.132044]
[1641927223945,0.04278789,42803.0,42800.0,0.132044]
[1641927224145,0.375591,42802.0,42800.0,0.132044]
[1641927224746,0.388591,42802.0,42800.0,0.132044]
[1641927225749,0.013,42802.0,42800.0,0.132044]
[1641927225949,0.02778789,42803.0,42800.0,0.132044]
[1641927226710,0.05478789,42803.0,42800.0,0.132044]
[1641927227109,0.05478789,42803.0,42800.0,0.190447]
[1641927228110,0.02778789,42803.0,42800.0,0.248846]
[1641927228715,0.04778789,42803.0,42800.0,0.248846]
[1641927229116,0.04778789,42803.0,42801.0,0.375591]
[1641927229117,0.02,42803.0,42801.0,0.375591]
[1641927229313,0.02,42803.0,42802.0,0.86998916]
[1641927229512,0.02,42803.0,42802.0,0.74558016]
[1641927229913,0.02,42803.0,42802.0,0.74058016]
[1641927230113,0.32885919,42810.0,42802.0,0.84048016]
[1641927230335,0.45238995,42812.0,42806.0,0.058393]
[1641927230735,0.006,42810.0,42806.0,0.058393]
[1641927231338,0.006,42810.0,42809.0,0.0999]
[1641927231638,0.006,42810.0,42809.0,0.158292]
[1641927232033,0.45238995,42812.0,42809.0,0.158292]
[1641927232234,0.00047753,42813.0,42809.0,0.158292]
[1641927232633,0.67984099,42814.0,42809.0,0.158292]
[1641927232834,0.38906858,42813.0,42809.0,0.158292]
[1641927233637,0.01347758,42813.0,42809.0,0.158292]
[1641927233836,0.013,42813.0,42809.0,0.158292]
[1641927234082,0.00047758,42813.0,42809.0,0.158292]
[1641927234782,0.01347758,42813.0,42809.0,0.158292]
[1641927234983,0.013,42813.0,42809.0,0.158292]
[1641927235182,0.01347758,42813.0,42809.0,0.158292]
[1641927235582,0.01347758,42813.0,42809.0,0.0999]
[1641927235583,0.375591,42812.0,42809.0,0.0999]
[1641927235783,0.375591,42812.0,42807.0,0.00084307]
[1641927235982,0.425591,42812.0,42807.0,0.00084307]
[1641927236183,0.43595106,42803.0,42800.0,0.132044]
[1641927236583,0.43307159,42802.0,42800.0,0.132044]
[1641927236782,0.43307159,42802.0,42800.0,0.156044]
[1641927236783,0.375591,42801.0,42800.0,0.156044]
[1641927237382,0.69168332,42801.0,42800.0,0.156044]
[1641927237582,0.74168332,42801.0,42800.0,0.156044]
[1641927238032,0.69168332,42801.0,42800.0,0.132044]
[1641927238834,0.70368332,42801.0,42800.0,0.132044]
[1641927239434,0.387591,42801.0,42800.0,0.132044]
[1641927240036,0.03400397,42805.0,42800.0,0.132044]
[1641927240635,0.03400397,42805.0,42801.0,0.31200095]
[1641927240835,0.11000397,42805.0,42802.0,0.0584]
[1641927242081,0.03400397,42805.0,42802.0,0.0584]
[1641927242883,0.04100397,42805.0,42802.0,0.0964]
[1641927243982,0.03400397,42805.0,42802.0,0.0584]
[1641927244786,0.10700397,42805.0,42802.0,0.0584]
[1641927245635,0.10700397,42805.0,42801.0,0.00084312]
[1641927245836,0.375591,42804.0,42800.0,0.231944]
[1641927246036,0.375591,42804.0,42801.0,0.00084312]
[1641927246636,0.425591,42804.0,42801.0,0.00084312]
[1641927246838,0.509591,42804.0,42801.0,0.00084312]
[1641927247036,0.509591,42804.0,42800.0,0.231944]
[1641927247238,0.134,42804.0,42800.0,0.23278713]
[1641927248037,0.05,42804.0,42800.0,0.23278713]
[1641927248237,0.05,42804.0,42800.0,0.231944]
[1641927248438,0.08400397,42805.0,42800.0,0.23278714]
[1641927248639,0.03400397,42805.0,42800.0,0.23278714]
[1641927248841,0.024,42804.0,42800.0,0.24178714]
[1641927249291,0.024,42804.0,42800.0,0.240944]
[1641927249497,0.024,42804.0,42800.0,0.24178714]
[1641927250092,0.03400397,42805.0,42800.0,0.23278714]
[1641927250491,0.03400397,42805.0,42800.0,0.231944]
[1641927250691,0.03400397,42805.0,42801.0,0.058403]
[1641927250892,0.07000397,42805.0,42801.0,0.058403]
[1641927251294,0.036,42805.0,42801.0,0.37745426]
[1641927251891,0.036,42805.0,42801.0,0.37829739]
[1641927252294,0.036,42805.0,42801.0,0.48340909]
[1641927252494,0.31684332,42811.0,42803.0,0.05839]
[1641927252739,0.45968359,42813.0,42803.0,0.05839]
[1641927252937,0.45920615,42813.0,42803.0,0.05839]
[1641927253137,0.45968366,42813.0,42807.0,0.0999]
[1641927253338,0.00047751,42813.0,42807.0,0.0999]
[1641927253538,0.00086514,42813.0,42807.0,0.09818079]
[1641927253737,0.00086514,42813.0,42807.0,0.09405514]
[1641927253938,0.26290972,42813.0,42807.0,0.09405514]
[1641927254139,0.26290972,42813.0,42810.0,0.05839]
[1641927254140,0.26243221,42813.0,42810.0,0.05839]
[1641927254438,0.0008652,42813.0,42810.0,0.05839]
[1641927254839,0.0278652,42813.0,42810.0,0.05839]
[1641927255245,0.0278652,42813.0,42811.0,0.32792733]
[1641927255440,0.0278652,42813.0,42812.0,1.042349]
[1641927255441,0.02738763,42813.0,42812.0,1.042349]
[1641927255639,0.02738763,42813.0,42812.0,1.39383179]
[1641927255840,0.02738763,42813.0,42812.0,1.44103179]
[1641927256492,0.00015,42820.0,42813.0,0.75]
[1641927256688,0.00015,42820.0,42817.0,0.058376]
[1641927256889,0.00015,42820.0,42818.0,0.375591]
[1641927257893,0.00015,42820.0,42819.0,0.31077127]
[1641927258086,0.00015,42820.0,42819.0,0.375591]
[1641927258989,0.00015,42820.0,42819.0,0.384591]
[1641927259391,0.00015,42820.0,42819.0,0.009]
[1641927259990,0.00015,42820.0,42816.0,0.0472]
[1641927260440,0.00015,42820.0,42819.0,0.094]
[1641927260837,0.00015,42820.0,42817.0,0.058382]
[1641927262842,0.00015,42820.0,42817.0,0.064382]
[1641927264089,0.00015,42820.0,42817.0,0.058382]
[1641927264888,0.00015,42820.0,42819.0,0.0939]
[1641927266690,0.00015,42820.0,42819.0,0.087692]
[1641927266888,0.00015,42820.0,42819.0,0.464283]
[1641927267591,0.00015,42820.0,42819.0,1.15207022]
[1641927267849,0.00015,42820.0,42819.0,1.011391]
[1641927268245,0.00015,42820.0,42819.0,1.11605394]
[1641927268448,0.00015,42820.0,42819.0,1.78929364]
[1641927268646,0.00015,42820.0,42819.0,1.78829364]
[1641927268946,0.00015,42820.0,42819.0,1.74399107]
[1641927269147,0.00015,42830.0,42825.0,0.058363]
[1641927269346,0.00015,42830.0,42827.0,0.116717]
[1641927269545,0.00015,42830.0,42828.0,0.375591]
[1641927270149,0.00015,42830.0,42827.0,0.058359]
[1641927270547,0.00015,42830.0,42825.0,0.058372]
[1641927270747,0.00015,42830.0,42827.0,0.005]
[1641927271151,0.00015,42830.0,42827.0,0.00441787]
[1641927271990,0.00015,42830.0,42825.0,0.058372]
[1641927272188,0.00015,42830.0,42825.0,0.116741]
[1641927272391,0.00015,42830.0,42827.0,0.058369]
[1641927273390,0.00015,42830.0,42825.0,0.005]
[1641927273594,0.38262383,42829.0,42825.0,0.005]
[1641927273991,0.49101183,42829.0,42825.0,0.005]
[1641927274193,0.05838725,42825.0,42819.0,0.0876]
[1641927274393,0.35600992,42822.0,42819.0,0.0876]
[1641927274593,0.81845656,42821.0,42819.0,0.0876]
[1641927274791,0.81845656,42821.0,42819.0,0.0916]
[1641927275090,1.23656191,42821.0,42819.0,0.0916]
[1641927275737,0.81845656,42821.0,42819.0,0.0916]
[1641927276136,0.81845656,42821.0,42819.0,0.0876]
[1641927276941,1.12691348,42820.0,42819.0,0.0876]
[1641927277138,1.50250448,42820.0,42819.0,0.0876]
[1641927277339,0.75250448,42820.0,42819.0,0.0876]
[1641927277940,0.75350448,42820.0,42819.0,0.0876]
[1641927280489,0.37791348,42820.0,42819.0,0.0876]
[1641927282295,0.75350448,42820.0,42819.0,0.0876]
[1641927282742,0.376591,42820.0,42819.0,0.0876]
[1641927283144,0.001,42820.0,42818.0,0.058381]
[1641927283744,0.001,42820.0,42815.0,0.058384]